Workbook

Sheet Legrand árlista
B2: Referenciaszám kereső | C2: Megnevezés kereső
A4: Katalógusszám | B4: Katalógusszám csom.kóddal | C4: Katalógusszám megnevezés | D4: Nettó listaár 2019 | E4: Család megnevezés | F4: Elektro-light kisker bruttó
A5: 001196 | B5: 001196 | C5: Céliane My Home riasztó rendszer akkumulátor tartó 040749-hez | D5: 8507 | E5: Süllyesztett és falon kívüli kiselosztók, burkolatok és kiegészítők | F5: =+D5*0.72*1.7 -> 10412.568
A6: 001301 | B6: 001301 | C6: Ekinoxe burkolat 1 modul | D6: 960 | E6: Süllyesztett és falon kívüli kiselosztók, burkolatok és kiegészítők | F6: =+D6*0.72*1.7 -> 1175.04
A7: 001302 | B7: 001302 | C7: Ekinoxe burkolat 2 modul | D7: 1000 | E7: Süllyesztett és falon kívüli kiselosztók, burkolatok és kiegészítők | F7: 1224
A8: 001304 | B8: 001304 | C8: Ekinoxe burkolat 4 modul | D8: 1284 | E8: Süllyesztett és falon kívüli kiselosztók, burkolatok és kiegészítők | F8: 1571.616
A9: 001306 | B9: 001306 | C9: Ekinoxe falonkívüli 1s 6m kiselosztó | D9: 2617 | E9: Süllyesztett és falon kívüli kiselosztók, burkolatok és kiegészítők | F9: 3203.208
A10: 001389 | B10: 001389 | C10: Ekinoxe plombálókészlet | D10: 2010 | E10: Süllyesztett és falon kívüli kiselosztók, burkolatok és kiegészítők | F10: 2460.24
A11: 001390 | B11: 001390 | C11: Ekinoxe TX 850-es számú zár | D11: 3145 | E11: Süllyesztett és falon kívüli kiselosztók, burkolatok és kiegészítők | F11: 3849.48
A12: 001490 | B12: 001490 | C12: Süllyesztett Nedbox kiselosztó rögzítő készlet | D12: 3812 | E12: Süllyesztett és falon kívüli kiselosztók, burkolatok és kiegészítők | F12: 4665.888
A13: 001491 | B13: 001491 | C13: Legrand zár No850 kiselosztó kulcsos | D13: 6184 | E13: Süllyesztett és falon kívüli kiselosztók, burkolatok és kiegészítők | F13: 7569.216
A14: 001660 | B14: 001660 | C14: Practibox modultakaró fehér, 5 modul széles, félmodulos perforációkkal | D14: 356 | E14: Süllyesztett és falon kívüli kiselosztók, burkolatok és kiegészítők | F14: 435.744
A15: 001662 | B15: 001662 | C15: Modultakaró, fehér RAL 9003 félmodulos osztásokkal, 13 modul széles | D15: 608 | E15: Süllyesztett és falon kívüli kiselosztók, burkolatok és kiegészítők | F15: 744.192
A16: 001664 | B16: 001664 | C16: Modultakaró, fehér RAL 9003 félmodulos osztásokkal, 18 modul széles | D16: 689 | E16: Süllyesztett és falon kívüli kiselosztók, burkolatok és kiegészítők | F16: 843.336
A17: 001665 | B17: 001665 | C17: Modultakaró szürke 18m,6,5 modul széles fehér | D17: 811 | E17: Süllyesztett és falon kívüli kiselosztók, burkolatok és kiegészítők | F17: 992.664
A18: 001690 | B18: 001690 | C18: Legrand szigetelő-tartó előlaphoz | D18: 862 | E18: Süllyesztett és falon kívüli kiselosztók, burkolatok és kiegészítők | F18: 1055.088
A19: 001691 | B19: 001691 | C19: Legrand előlap vágható, 1690 tartóra rögzíthető | D19: 2372 | E19: Süllyesztett és falon kívüli kiselosztók, burkolatok és kiegészítők | F19: 2903.328
A20: 001766 | B20: 001766 | C20: Hypra kulcsos zár | D20: 5580 | E20: Hypra ipari csatlakozórendszer | F20: 6829.92
A21: 001917 | B21: 001917 | C21: Plexo3 illesztő doboz 2s kiselosztóhoz IP65 | D21: 12174 | E21: Süllyesztett és falon kívüli kiselosztók, burkolatok és kiegészítők | F21: 14900.976
A22: 001918 | B22: 001918 | C22: Plexo3 illesztő doboz 3s kiselosztóhoz IP65 | D22: 18377 | E22: Süllyesztett és falon kívüli kiselosztók, burkolatok és kiegészítők | F22: 22493.448
A23: 001955 | B23: 001955 | C23: Süllyesztett Nedbox kiselosztó rögzítő készlet | D23: 2462 | E23: Süllyesztett és falon kívüli kiselosztók, burkolatok és kiegészítők | F23: 3013.488
A24: 001956 | B24: 001956 | C24: ISO 20 diem végződés | D24: 8477 | E24: Süllyesztett és falon kívüli kiselosztók, burkolatok és kiegészítők | F24: 10375.848
A25: 001957 | B25: 001957 | C25: ISO 25 diem végződés | D25: 15287 | E25: Süllyesztett és falon kívüli kiselosztók, burkolatok és kiegészítők | F25: 18711.288
A26: 001958 | B26: 001958 | C26: ISO 32 diem végződés | D26: 27666 | E26: Süllyesztett és falon kívüli kiselosztók, burkolatok és kiegészítők | F26: 33863.184
A27: 001961 | B27: 001961 | C27: Plexo3 modultakaró 5m R746A | D27: 218 | E27: Süllyesztett és falon kívüli kiselosztók, burkolatok és kiegészítők | F27: 266.832
A28: 001962 | B28: 001962 | C28: Plexo3 perforált szerelőlap 12m | D28: 6949 | E28: Süllyesztett és falon kívüli kiselosztók, burkolatok és kiegészítők | F28: 8505.576
A29: 001964 | B29: 001964 | C29: Plexo3 tömör előlap 12m | D29: 2947 | E29: Süllyesztett és falon kívüli kiselosztók, burkolatok és kiegészítők | F29: 3607.128
A30: 001965 | B30: 001965 | C30: Plexo3 tömör előlap 18m | D30: 3419 | E30: Süllyesztett és falon kívüli kiselosztók, burkolatok és kiegészítők | F30: 4184.856
A31: 001966 | B31: 001966 | C31: Plexo3 zárszerkezet No850 | D31: 2857 | E31: Süllyesztett és falon kívüli kiselosztók, burkolatok és kiegészítők | F31: 3496.968
A32: 001967 | B32: 001967 | C32: Plexo3 vízszintes összekötő elem | D32: 2969 | E32: Süllyesztett és falon kívüli kiselosztók, burkolatok és kiegészítők | F32: 3634.056
A33: 001968 | B33: 001968 | C33: Plexo3 plombálható takarókészlet | D33: 2943 | E33: Süllyesztett és falon kívüli kiselosztók, burkolatok és kiegészítők | F33: 3602.232
A34: 001969 | B34: 001969 | C34: Plexo3 fali rögzítő talp 4 db | D34: 6127 | E34: Süllyesztett és falon kívüli kiselosztók, burkolatok és kiegészítők | F34: 7499.448
A35: 001970 | B35: 001970 | C35: Plexo3 összekötő karmantyú, 2db | D35: 1061 | E35: Süllyesztett és falon kívüli kiselosztók, burkolatok és kiegészítők | F35: 1298.664
A36: 001972 | B36: 001972 | C36: Plexo elosztókapocs tartó - 1 és 2 soros 12 vagy 18 mod. elosztókhoz | D36: 1018 | E36: Süllyesztett és falon kívüli kiselosztók, burkolatok és kiegészítők | F36: 1246.032
A37: 002602 | B37: 002602 | C37: Céliane My Home moduláris világítási kapcsoló, 4x16A, 6M | D37: 102361 | E37: Céliane My Home rendszer | F37: 125289.864
A38: 002621 | B38: 002621 | C38: Céliane My Home moduláris fényerőszabályzó 1000W, LV és ELV halogénhez 6M | D38: 58720 | E38: Céliane My Home rendszer | F38: 71873.28
A39: 002622 | B39: 002622 | C39: Céliane My Home moduláris fényerőszabályzó 2x400W, EV és ELV halogénhez, 6M | D39: 58720 | E39: Céliane My Home rendszer | F39: 71873.28
A40: 002631 | B40: 002631 | C40: Céliane My Home BUS SCS/DALI interface, 6 modul (DIN) | D40: 94658 | E40: Céliane My Home rendszer | F40: 115861.392
A41: 002671 | B41: 002671 | C41: Multifunkciós fényerőszabályzó - LED-ekhez és kompakt fénycsövekhez - 1 modul | D41: 41481 | E41: Lexic fényerőszabályzók | F41: 50772.744
A42: 003022 | B42: 003022 | C42: Lexic túlfeszültség-levezető 25kA 3P 1,5kV TT, TN | D42: 0 | E42: Lexic túlfeszültség levezetők | F42: 0
A43: 003515 | B43: 003515 | C43: DALI tápegység RGB LED vezérlőkhöz, 230V, 250 mA, 16 V | D43: 24126 | E43: Lexic fényerőszabályzók | F43: 29530.224
A44: 003567 | B44: 003567 | C44: BUS/SCS tápegység, 27V= - 0,6 A | D44: 17253 | E44: MyHOME infrastruktúra | F44: 21117.672
A45: 003575 | B45: 003575 | C45: Céliane My Home mobil jeladó kártya | D45: 4530 | E45: Céliane My Home rendszer | F45: 5544.72
A46: 003608 | B46: 003608 | C46: IOBL fáziskapcsoló | D46: 50476 | E46: In One by Legrand rendszer | F46: 61782.624
A47: 003656 | B47: 003656 | C47: Céliane My Home moduláris fényerőszabályzó elektronikus előtéthez 0-10V, 500VA, 2 DIN mod | D47: 32502 | E47: Céliane My Home rendszer | F47: 39782.448
A48: 003658 | B48: 003658 | C48: Lexic fényerőszabályzó 800VA elektronikus előtétes fénycsőhöz | D48: 61698 | E48: Lexic fényerőszabályzók | F48: 75518.352
A49: 003659 | B49: 003659 | C49: Lexic fényerőszabályzó 600W izzó és halogénlámpához | D49: 50214 | E49: Lexic fényerőszabályzók | F49: 61461.936
A50: 003660 | B50: 003660 | C50: Lexic fényerőszabályzó 1000VA elektronikus előtétes fénycsőhöz | D50: 97365 | E50: Lexic fényerőszabályzók | F50: 119174.76
A51: 003671 | B51: 003671 | C51: Lexic fényerőszabályzó 1000W izzó és halogénlámpához | D51: 133013 | E51: Lexic fényerőszabályzók | F51: 162807.912
A52: 003680 | B52: 003680 | C52: Lexic fényerőszabályzó BUS táp 3660/71-hez | D52: 39213 | E52: Lexic fényerőszabályzók | F52: 47996.712
A53: 003705 | B53: 003705 | C53: Lexic digitális programkapcsoló, 28 program, 1 kimenet | D53: 41748 | E53: Lexic programkapcsolók | F53: 51099.552
A54: 003829 | B54: 003829 | C54: Lexic túlfeszültség-levezető digitális telefonvonalhoz 10kA 300V | D54: 0 | E54: Lexic túlfeszültség levezetők | F54: 0
A55: 003840 | B55: 003840 | C55: Lexic szobatermosztát központi egység 6A | D55: 57809 | E55: Mérőkészülékek | F55: 70758.216
A56: 003901 | B56: 003901 | C56: Távvezérlő tartalékvilágítási egységekhez | D56: 51235 | E56: Tartalékvilágítás moduláris távvezérlés | F56: 62711.64
A57: 003922 | B57: 003922 | C57: Lexic túlfeszültség-levezető 70kA 3P 2,0kV TT,TN,IT | D57: 63389 | E57: Lexic túlfeszültség levezetők | F57: 77588.136
A58: 003928 | B58: 003928 | C58: Lexic túlfeszültség-levezető 70kA cseremodul 2,0kV | D58: 11718 | E58: Lexic túlfeszültség levezetők | F58: 14342.832
A59: 003933 | B59: 003933 | C59: Lexic túlfeszültség-levezető 40kA 4P 1,8kV TT,TN,IT | D59: 46155 | E59: Lexic túlfeszültség levezetők | F59: 56493.72
A60: 003934 | B60: 003934 | C60: Lexic túlfeszültség-levezető 40kA cseremodul 1,8kV | D60: 13235 | E60: Lexic túlfeszültség levezetők | F60: 16199.64
A61: 003939 | B61: 003939 | C61: Lexic túlfeszültség-levezető 40kA cseremodul 1,4kV | D61: 11583 | E61: Lexic túlfeszültség levezetők | F61: 14177.592
A62: 003940 | B62: 003940 | C62: Lexic túlfeszültség-levezető 15kA 1P 1,2kV TT,TNS | D62: 8982 | E62: Lexic túlfeszültség levezetők | F62: 10993.968
A63: 003944 | B63: 003944 | C63: Lexic túlfeszültség-levezető 15 kA cseremodul 1,2kV | D63: 7723 | E63: Lexic túlfeszültség levezetők | F63: 9452.952
A64: 003951 | B64: 003951 | C64: Lexic komp. túlfeszültség-levezető 2P 12kA | D64: 17362 | E64: Lexic túlfeszültség levezetők | F64: 21251.088
A65: 003953 | B65: 003953 | C65: Lexic komplett túlfeszültség-levezető 4P 12kA | D65: 34731 | E65: Lexic túlfeszültség levezetők | F65: 42510.744
A66: 003954 | B66: 003954 | C66: Lexic komp. túlfeszültség-levezető cseremodul 12kA | D66: 11884 | E66: Lexic túlfeszültség levezetők | F66: 14546.016
A67: 003958 | B67: 003958 | C67: Lexic túlfeszültség-levezető jelző 4P segédérintkező | D67: 17910 | E67: Lexic túlfeszültség levezetők | F67: 21921.84
A68: 003971 | B68: 003971 | C68: Lexic komp. túlf.- levezető 1+1 N/bal 12kA | D68: 20203 | E68: Lexic túlfeszültség levezetők | F68: 24728.472
A69: 003973 | B69: 003973 | C69: Lexic komp. túlf.- levezető 12kA 3+1 N/bal | D69: 43930 | E69: Lexic túlfeszültség levezetők | F69: 53770.32
A70: 003974 | B70: 003974 | C70: Lexic komp. túlf.- levezető cserem T2/12kA | D70: 17566 | E70: Lexic túlfeszültség levezetők | F70: =+D70*0.72*1.7 -> 21500.784
A71: 004069 | B71: 004069 | C71: Lexic moduláris kontaktor 3P 230V~ 40A 3Z | D71: 21142 | E71: Lexic mágneskapcsolók | F71: 25877.808
A72: 004101 | B72: 004101 | C72: Lexic csengő 8/12V~ | D72: 3774 | E72: Lexic csengők és berregők | F72: 4619.376
A73: 004107 | B73: 004107 | C73: Lexic csengő 230V~ | D73: 4036 | E73: Lexic csengők és berregők | F73: 4940.064
A74: 004110 | B74: 004110 | C74: Lexic berregő 8/12V~ | D74: 5696 | E74: Lexic csengők és berregők | F74: 6971.904
A75: 004111 | B75: 004111 | C75: Lexic berregő 24V~ | D75: 5162 | E75: Lexic csengők és berregők | F75: 6318.288
A76: 004113 | B76: 004113 | C76: Lexic berregő 230V~ | D76: 6134 | E76: Lexic csengők és berregők | F76: 7508.016
A77: 004126 | B77: 004126 | C77: Lexic2 moduláris kontaktor 16A 230V Ny+Z kn | D77: 13710 | E77: Lexic mágneskapcsolók | F77: 16781.04
A78: 004131 | B78: 004131 | C78: Lexic2 moduláris kontaktor 25A 230V 4Z kn | D78: 12035 | E78: Lexic mágneskapcsolók | F78: 14730.84
A79: 004147 | B79: 004147 | C79: Lexic2 moduláris kontaktor 25A 230V 2Z | D79: 0 | E79: Lexic mágneskapcsolók | F79: 0
A80: 004148 | B80: 004148 | C80: Lexic2 moduláris kontaktor 25A 230V 4Z | D80: 0 | E80: Lexic mágneskapcsolók | F80: 0
A81: 004162 | B81: 004162 | C81: Lexic2 impulzusrelé 1P tf. 230V 16A 1Z | D81: 4815 | E81: Lexic impulzus-relék | F81: 5893.56
A82: 004210 | B82: 004210 | C82: Tápegység 6W 0,5A akkuval | D82: 80851 | E82: Céliane My Home rendszer | F82: 98961.624
A83: 004254 | B83: 004254 | C83: Lexic trafó biztonsági 63VA 230/24-12-2x12V | D83: 0 | E83: Lexic moduláris transzformátorok | F83: 0
A84: 004285 | B84: 004285 | C84: Lexic moduláris 2P+F csatlakozóaljzat 10/16A | D84: 4003 | E84: Lexic csatlakozóaljzat | F84: 4899.672
A85: 004302 | B85: 004302 | C85: Lexic moduláris kapcsoló 1P 20A | D85: 0 | E85: Lexic moduláris kapcsolók, nyomók | F85: 0
A86: 004303 | B86: 004303 | C86: Lexic moduláris kapcsoló 1P+jelzőlámpa 20A | D86: 8861 | E86: Lexic moduláris kapcsolók, nyomók | F86: 10845.864
A87: 004305 | B87: 004305 | C87: Lexic moduláris kapcsoló 1P 32A | D87: 3465 | E87: Lexic moduláris kapcsolók, nyomók | F87: 4241.16
A88: 004307 | B88: 004307 | C88: Lexic moduláris kapcsoló 1P 40A | D88: 0 | E88: Lexic moduláris kapcsolók, nyomók | F88: 0
A89: 004310 | B89: 004310 | C89: Lexic moduláris kapcsoló 1P 63A | D89: 0 | E89: Lexic moduláris kapcsolók, nyomók | F89: 0
A90: 004322 | B90: 004322 | C90: Lexic moduláris kapcsoló 2P 20A | D90: 0 | E90: Lexic moduláris kapcsolók, nyomók | F90: 0
A91: 004327 | B91: 004327 | C91: Lexic moduláris kapcsoló 2P 40A | D91: 0 | E91: Lexic moduláris kapcsolók, nyomók | F91: 0
A92: 004330 | B92: 004330 | C92: Lexic moduláris kapcsoló 2P 63A | D92: 12009 | E92: Lexic moduláris kapcsolók, nyomók | F92: 14699.016
A93: 004347 | B93: 004347 | C93: Lexic moduláris kapcsoló 3P 40A | D93: 0 | E93: Lexic moduláris kapcsolók, nyomók | F93: 0
A94: 004350 | B94: 004350 | C94: Lexic moduláris kapcsoló 3P 63A | D94: 15268 | E94: Lexic moduláris kapcsolók, nyomók | F94: 18688.032
A95: 004354 | B95: 004354 | C95: Lexic moduláris kapcsoló 3P 100A | D95: 18686 | E95: Lexic moduláris kapcsolók, nyomók | F95: 22871.664
A96: 004358 | B96: 004358 | C96: Lexic moduláris kapcsoló 3P 125A | D96: 0 | E96: Lexic moduláris kapcsolók, nyomók | F96: 0
A97: 004362 | B97: 004362 | C97: Lexic moduláris kapcsoló 4P 20A | D97: 0 | E97: Lexic moduláris kapcsolók, nyomók | F97: 0
A98: 004378 | B98: 004378 | C98: Lexic moduláris kapcsoló 4P 125A | D98: 0 | E98: Lexic moduláris kapcsolók, nyomók | F98: 0
A99: 004386 | B99: 004386 | C99: Lexic váltókapcsoló 2P 20A középállással | D99: 0 | E99: Lexic moduláris kapcsolók, nyomók | F99: 0
A100: 004388 | B100: 004388 | C100: Lexic váltókapcsoló 2P 20A Ny+Z | D100: 0 | E100: Lexic moduláris kapcsolók, nyomók | F100: 0
A101: 004406 | B101: 004406 | C101: Lexic moduláris tartóelem üres | D101: 1906 | E101: Süllyesztett és falon kívüli kiselosztók, burkolatok és kiegészítők | F101: 2332.944
A102: 004409 | B102: 004409 | C102: Kalapsín adapter Kat.szám 0497 56 | D102: 2046 | E102: Süllyesztett és falon kívüli kiselosztók, burkolatok és kiegészítők | F102: 2504.304
A103: 004416 | B103: 004416 | C103: Lexic csavaros fém adapter kalapos sínekhez, 10mm széles, menetes furattal | D103: 350 | E103: Süllyesztett és falon kívüli kiselosztók, burkolatok és kiegészítők | F103: 428.4
A104: 004417 | B104: 004417 | C104: Lexic csavaros fém adapter kalapos sínekhez, 17,5mm széles, sima furattal | D104: 563 | E104: Süllyesztett és falon kívüli kiselosztók, burkolatok és kiegészítők | F104: 689.112
A105: 004432 | B105: 004432 | C105: Lexic E10 izzó 8/12V 1,2W | D105: 929 | E105: Lexic moduláris kapcsolók, nyomók | F105: 1137.096
A106: 004453 | B106: 004453 | C106: Lexic nyomókapcsoló szimpla 1Z 20A | D106: 0 | E106: Lexic moduláris kapcsolók, nyomók | F106: 0
A107: 004454 | B107: 004454 | C107: Lexic nyomókapcsoló szimpla 1Ny 20A | D107: 0 | E107: Lexic moduláris kapcsolók, nyomók | F107: 0
A108: 004455 | B108: 004455 | C108: Lexic nyomókapcsoló szimpla 2Z 20A | D108: 0 | E108: Lexic moduláris kapcsolók, nyomók | F108: 0
A109: 004458 | B109: 004458 | C109: Lexic nyomókapcsoló szimpla 1Z+1Ny 20A | D109: 0 | E109: Lexic moduláris kapcsolók, nyomók | F109: 0
A110: 004468 | B110: 004468 | C110: Lexic nyomókapcsoló dupla 1Z+1Ny 20A | D110: 8576 | E110: Lexic moduláris kapcsolók, nyomók | F110: 10497.024
A111: 004485 | B111: 004485 | C111: Lexic jelzőlámpa narancs 250V~ | D111: 0 | E111: Lexic moduláris kapcsolók, nyomók | F111: 0
A112: 004487 | B112: 004487 | C112: Lexic jelzőlámpa színtelen 250V~ | D112: 0 | E112: Lexic moduláris kapcsolók, nyomók | F112: 0
A113: 004600 | B113: 004600 | C113: Lexic A mérő analóg ÁV csatlakozású 5A AC/DC | D113: 40182 | E113: Mérőkészülékek | F113: 49182.768
A114: 004602 | B114: 004602 | C114: Lexic A mérő analóg közvetlen 0-30A AC/DC | D114: 45619 | E114: Mérőkészülékek | F114: 55837.656
A115: 004610 | B115: 004610 | C115: Lexic A mérő skála 0-50A 4600-hoz | D115: 2856 | E115: Mérőkészülékek | F115: 3495.744
A116: 004613 | B116: 004613 | C116: Lexic A mérő skála 0-100A 4600-hoz | D116: 2856 | E116: Mérőkészülékek | F116: 3495.744
A117: 004615 | B117: 004615 | C117: Lexic A mérő skála 0-200A 4600-hoz | D117: 2856 | E117: Mérőkészülékek | F117: 3495.744
A118: 004616 | B118: 004616 | C118: Lexic A mérő skála 0-250A 4600-hoz | D118: 2856 | E118: Mérőkészülékek | F118: 3495.744
A119: 004617 | B119: 004617 | C119: Lexic A mérő skála 0-300A 4600-hoz | D119: 2856 | E119: Mérőkészülékek | F119: 3495.744
A120: 004618 | B120: 004618 | C120: Lexic A mérő skála 0-400A 4600-hoz | D120: 2856 | E120: Mérőkészülékek | F120: 3495.744
A121: 004620 | B121: 004620 | C121: Lexic A mérő skála 0-600A 4600-hoz | D121: 2856 | E121: Mérőkészülékek | F121: 3495.744
A122: 004621 | B122: 004621 | C122: Lexic A mérő skála 0-800A 4600-hoz | D122: 2856 | E122: Mérőkészülékek | F122: 3495.744
A123: 004622 | B123: 004622 | C123: Lexic A mérő skála 0-1000A 4600-hoz | D123: 2856 | E123: Mérőkészülékek | F123: 3495.744
A124: 004624 | B124: 004624 | C124: Lexic A mérő skála 0-1500A 4600-hoz | D124: 2856 | E124: Mérőkészülékek | F124: 3495.744
A125: 004625 | B125: 004625 | C125: Lexic A mérő skála 0-2000A 4600-hoz | D125: 2856 | E125: Mérőkészülékek | F125: 3495.744
A126: 004650 | B126: 004650 | C126: Lexic A mérő átkapcsoló 4 állású | D126: 31405 | E126: Mérőkészülékek | F126: 38439.72
A127: 004652 | B127: 004652 | C127: Lexic V mérő átkapcsoló 4 állású | D127: 23870 | E127: Mérőkészülékek | F127: 29216.88
A128: 004653 | B128: 004653 | C128: Lexic V mérő átkapcsoló 7 állású | D128: 31743 | E128: Mérőkészülékek | F128: 38853.432
A129: 004655 | B129: 004655 | C129: Lexic átkapcsoló 1P 4 bekapcsolt állással | D129: 16683 | E129: Lexic moduláris kapcsolók, nyomók | F129: 20419.992
A130: 004656 | B130: 004656 | C130: Lexic átkapcsoló 2P 2 impulzusadó állással | D130: 17206 | E130: Lexic moduláris kapcsolók, nyomók | F130: 21060.144
A131: 004658 | B131: 004658 | C131: Lexic átkapcsoló 2P 2 bekapcsolt állással | D131: 19981 | E131: Lexic moduláris kapcsolók, nyomók | F131: 24456.744
A132: 004660 | B132: 004660 | C132: Lexic V mérő analóg AC/DC 0-500V | D132: 47428 | E132: Mérőkészülékek | F132: 58051.872
A133: 004663 | B133: 004663 | C133: Lexic A/V mérő digitális ÁV 5A AC 500V AC/DC | D133: 100402 | E133: Mérőkészülékek | F133: 122892.048
A134: 004664 | B134: 004664 | C134: Lexic Hz mérő digitális 40-80Hz 230V~ | D134: 152271 | E134: Mérőkészülékek | F134: =+D134*0.72*1.7 -> 186379.704
A135: 004666 | B135: 004666 | C135: Lexic A mérő skála 0-1250A 4600-hoz | D135: 2642 | E135: Mérőkészülékek | F135: 3233.808
A136: 004670 | B136: 004670 | C136: Lexic fogyasztásmérő 1F direkt 32A imp.kimenet | D136: 26420 | E136: Mérőkészülékek | F136: 32338.08
A137: 004673 | B137: 004673 | C137: Lexic fogyasztásmérő 3F 63A közvetlen csatlakozással, impulzusadóval | D137: 212197 | E137: Mérőkészülékek | F137: 259729.128
A138: 004678 | B138: 004678 | C138: Lexic fogyasztásmérő 1F63A MID | D138: 51080 | E138: Mérőkészülékek | F138: 62521.92
A139: 004679 | B139: 004679 | C139: Lexic fogyasztásmérő 1F63A MID | D139: 88070 | E139: Mérőkészülékek | F139: 107797.68
A140: 004682 | B140: 004682 | C140: Lexic fogyasztásmérő 3F63A MID | D140: 109208 | E140: Mérőkészülékek | F140: 133670.592
A141: 004683 | B141: 004683 | C141: Lexic fogyasztásmérő 3F63A MID | D141: 126821 | E141: Mérőkészülékek | F141: 155228.904
A142: 004685 | B142: 004685 | C142: Lexic fogyasztásmérő 3F 5A MID | D142: 79263 | E142: Mérőkészülékek | F142: 97017.912
A143: 004686 | B143: 004686 | C143: Lexic fogyasztásmérő 3F 5A MID | D143: 105686 | E143: Mérőkészülékek | F143: 129359.664
A144: 004689 | B144: 004689 | C144: IP konverter RS 485 / Ethernet konverzióval - 2 modul | D144: 303426 | E144: Mérőkészülékek | F144: 371393.424
A145: 004691 | B145: 004691 | C145: Lexic üzemóra számláló analóg 24V~ | D145: 18830 | E145: Mérőkészülékek | F145: 23047.92
A146: 004694 | B146: 004694 | C146: Lexic üzemóra számláló analóg 230V~ | D146: 22317 | E146: Mérőkészülékek | F146: 27316.008
A147: 004698 | B147: 004698 | C147: Lexic áramváltó 250/5, háromfázisú | D147: 0 | E147: Mérőkészülékek | F147: 0
A148: 004704 | B148: 004704 | C148: Lexic lécsőházi automata kikapcsolás előjelzővel | D148: 17613 | E148: Lexic lépcsőházi automaták | F148: 21558.312
A149: 004740 | B149: 004740 | C149: Lexic időrelé meghúzás késleltetés 8A 250V~ | D149: 36290 | E149: Lexic mágneskapcsolók | F149: 44418.96
A150: 004741 | B150: 004741 | C150: Lexic időrelé ejtés késleltetés 8A 250V~ | D150: 37134 | E150: Lexic mágneskapcsolók | F150: 45452.016
A151: 004742 | B151: 004742 | C151: Lexic időrelé ciklusismétlő 8A 250V~ | D151: 46193 | E151: Lexic mágneskapcsolók | F151: 56540.232
A152: 004743 | B152: 004743 | C152: Lexic időrelé időzítő 8A 250V~ | D152: 47536 | E152: Lexic mágneskapcsolók | F152: 58184.064
A153: 004744 | B153: 004744 | C153: Lexic időrelé többfunkciós 8A 250V~ | D153: 56560 | E153: Lexic mágneskapcsolók | F153: 69229.44
A154: 004745 | B154: 004745 | C154: Lexic időrelé impulzusadó 8A 250V~ | D154: 45452 | E154: Lexic mágneskapcsolók | F154: 55633.248
A155: 004770 | B155: 004770 | C155: AstroRex DY64 éves programkapcsoló 4 csatornás 4x84 program | D155: 159742 | E155: Lexic programkapcsolók | F155: 195524.208
A156: 004781 | B156: 004781 | C156: Lexic memória egység 004770-hez | D156: 8456 | E156: Lexic programkapcsolók | F156: 10350.144
A157: 004791 | B157: 004791 | C157: Tápegység 5V~/= 2 5 A | D157: 38604 | E157: Lexic moduláris transzformátorok | F157: 47251.296
A158: 004793 | B158: 004793 | C158: EMDX3 stab. tápegység 230V~- 24V=, 24W, 1A | D158: 55820 | E158: Lexic moduláris transzformátorok | F158: 68323.68
A159: 004801 | B159: 004801 | C159: Lexic elosztókapocs csupasz 4 csatlakozás | D159: 679 | E159: Lexic elosztási tartozékok | F159: 831.096
A160: 004803 | B160: 004803 | C160: Lexic elosztókapocs csupasz 8 csatlakozás | D160: 773 | E160: Lexic elosztási tartozékok | F160: 946.152
A161: 004805 | B161: 004805 | C161: Lexic elosztókapocs csupasz 14 csatlakozás | D161: 1118 | E161: Lexic elosztási tartozékok | F161: 1368.432
A162: 004806 | B162: 004806 | C162: Lexic elosztókapocs csupasz 19 csatlakozás | D162: 2304 | E162: Lexic elosztási tartozékok | F162: 2820.096
A163: 004807 | B163: 004807 | C163: Lexic elosztókapocs csupasz 24 csatlakozás | D163: 3527 | E163: Lexic elosztási tartozékok | F163: 4317.048
A164: 004810 | B164: 004810 | C164: Lexic elosztókapocs-tartó sínre szerelhető | D164: 2226 | E164: Lexic elosztási tartozékok | F164: 2724.624
A165: 004811 | B165: 004811 | C165: Lexic elosztókapocs-tartó univerzális | D165: 688 | E165: Lexic elosztási tartozékok | F165: 842.112
A166: 004817 | B166: 004817 | C166: Lexic elkosztókapocs-tartó üres 35 furat | D166: 1207 | E166: Lexic elosztási tartozékok | F166: 1477.368
A167: 004819 | B167: 004819 | C167: Lexic 12x2 lapos sín | D167: 1569 | E167: Lexic elosztási tartozékok | F167: 1920.456
A168: 004820 | B168: 004820 | C168: Lexic elosztókapocs félig szigetelt 4 csatlakozás | D168: 977 | E168: Lexic elosztási tartozékok | F168: 1195.848
A169: 004822 | B169: 004822 | C169: Lexic elosztókapocs félig szigetelt 8 csatlakozás | D169: 1148 | E169: Lexic elosztási tartozékok | F169: 1405.152
A170: 004824 | B170: 004824 | C170: Lexic elosztókapocs félig szigetelt 12 csatlakozás | D170: 1515 | E170: Lexic elosztási tartozékok | F170: 1854.36
A171: 004825 | B171: 004825 | C171: Lexic elosztókapocs félig szigetelt 16 csatlakozás | D171: 1846 | E171: Lexic elosztási tartozékok | F171: 2259.504
A172: 004826 | B172: 004826 | C172: Lexic elosztókapocs félig szigetelt 21 csatlakozás | D172: 4216 | E172: Lexic elosztási tartozékok | F172: 5160.384
A173: 004828 | B173: 004828 | C173: Lexic elosztókapocs félig szigetelt 33 csatlakozás | D173: 4587 | E173: Lexic elosztási tartozékok | F173: 5614.488
A174: 004830 | B174: 004830 | C174: Lexic elosztókapocs IP2 4 védő csatlakozás zöld | D174: 779 | E174: Lexic elosztási tartozékok | F174: 953.496
A175: 004832 | B175: 004832 | C175: Lexic elosztókapocs IP2 8 védő csatlakozás | D175: 1031 | E175: Lexic elosztási tartozékok | F175: 1261.944
A176: 004834 | B176: 004834 | C176: Lexic elosztókapocs IP2 12 védő csatlakozás | D176: 1283 | E176: Lexic elosztási tartozékok | F176: 1570.392
A177: 004835 | B177: 004835 | C177: Lexic elosztókapocs IP2 16 védő csatlakozás | D177: 1741 | E177: Lexic elosztási tartozékok | F177: 2130.984
A178: 004836 | B178: 004836 | C178: Lexic elosztókapocs IP2 21 védő csatlakozás | D178: 4532 | E178: Lexic elosztási tartozékok | F178: 5547.168
A179: 004837 | B179: 004837 | C179: Lexic elosztókapocs IP2 26 védő csatlakozás | D179: 4905 | E179: Lexic elosztási tartozékok | F179: 6003.72
A180: 004838 | B180: 004838 | C180: Lexic elosztókapocs IP2 33 védő csatlakozás | D180: 5011 | E180: Lexic elosztási tartozékok | F180: 6133.464
A181: 004840 | B181: 004840 | C181: Lexic elosztókapocs IP2 4 nulla csatlakozás kék | D181: 785 | E181: Lexic elosztási tartozékok | F181: 960.84
A182: 004842 | B182: 004842 | C182: Lexic elosztókapocs IP2 8 nulla csatlakozás | D182: 1004 | E182: Lexic elosztási tartozékok | F182: 1228.896
A183: 004844 | B183: 004844 | C183: Lexic elosztókapocs IP2 12 nulla csatlakozás | D183: 1299 | E183: Lexic elosztási tartozékok | F183: 1589.976
A184: 004845 | B184: 004845 | C184: Lexic elosztókapocs IP2 16 nulla csatlakozás | D184: 1782 | E184: Lexic elosztási tartozékok | F184: 2181.168
A185: 004846 | B185: 004846 | C185: Lexic elosztókapocs IP2 21 nulla csatlakozás | D185: 4529 | E185: Lexic elosztási tartozékok | F185: 5543.496
A186: 004848 | B186: 004848 | C186: Lexic elosztókapocs IP2 33 nulla csatlakozás | D186: 5163 | E186: Lexic elosztási tartozékok | F186: 6319.512
A187: 004850 | B187: 004850 | C187: Lexic elosztókapocs IP2 4 fázis csatlakozás fekete | D187: 775 | E187: Lexic elosztási tartozékok | F187: 948.6
A188: 004852 | B188: 004852 | C188: Lexic elosztókapocs IP2 8 fázis csatlakozás | D188: 1013 | E188: Lexic elosztási tartozékok | F188: 1239.912
A189: 004854 | B189: 004854 | C189: Lexic elosztókapocs IP2 12 fázis csatlakozás | D189: 1264 | E189: Lexic elosztási tartozékok | F189: 1547.136
A190: 004855 | B190: 004855 | C190: Lexic elosztókapocs IP2 16 fázis csatlakozás | D190: 1924 | E190: Lexic elosztási tartozékok | F190: 2354.976
A191: 004856 | B191: 004856 | C191: Lexic elosztókapocs IP2 21 fázis csatlakozás | D191: 4810 | E191: Lexic elosztási tartozékok | F191: 5887.44
A192: 004858 | B192: 004858 | C192: Lexic elosztókapocs IP2 33 fázis csatlakozás | D192: 5250 | E192: Lexic elosztási tartozékok | F192: 6426
A193: 004867 | B193: 004867 | C193: Lexic elosztókapocs 160A | D193: 5701 | E193: Lexic elosztási tartozékok | F193: 6978.024
A194: 004868 | B194: 004868 | C194: Lexic elosztókapocs 250A | D194: 6752 | E194: Lexic elosztási tartozékok | F194: 8264.448
A195: 004871 | B195: 004871 | C195: Lexic moduláris elosztóblokk 1P 125A 16 furat | D195: 11146 | E195: Lexic moduláris elosztóblokkok | F195: 13642.704
A196: 004873 | B196: 004873 | C196: Lexic moduláris elosztóblokk 1P 250A 10 furat | D196: 14291 | E196: Lexic moduláris elosztóblokkok | F196: 17492.184
A197: 004876 | B197: 004876 | C197: Lexic moduláris elosztóblokk 4P 125A 4x17 furat | D197: 24041 | E197: Lexic moduláris elosztóblokkok | F197: 29426.184
A198: 004877 | B198: 004877 | C198: Lexic elosztóblokk 4P 250A 4x12 furat | D198: 55044 | E198: Lexic moduláris elosztóblokkok | F198: =+D198*0.72*1.7 -> 67373.856
A199: 004879 | B199: 004879 | C199: Lexic elosztóblokk 4P 160A 4x15 furat | D199: 39724 | E199: Lexic moduláris elosztóblokkok | F199: 48622.176
A200: 004880 | B200: 004880 | C200: Lexic elosztóblokk 2P 100A 2x7furat | D200: 6586 | E200: Lexic moduláris elosztóblokkok | F200: 8061.264
A201: 004881 | B201: 004881 | C201: Lexic elosztóblokk 2P 40A 17 furat | D201: 6474 | E201: Lexic moduláris elosztóblokkok | F201: 7924.176
A202: 004882 | B202: 004882 | C202: Lexic elosztóblokk 2P 125A 3x15 furat | D202: 8738 | E202: Lexic moduláris elosztóblokkok | F202: 10695.312
... 16114 more rows
